Cogmind - Beta 15 @@@ ROGUE MODE // 2025.05.26 @ 22:45:39 Player: VT-MNC Result: Destroyed by 6W-IDL(R) with Subdweller Laser Performance ------------- Evolutions (0) 0 Regions Visited (2) 400 Robots Destroyed (38) 190 Value Destroyed (880) 880 Prototype IDs (12) 240 Alien Tech Used (0) 0 Bonus (-74) -74 TOTAL SCORE: 1636 Bonus ------- Friendly Fire -74 Cogmind --------- Core Integrity 0/250 Matter 138/300 Energy 247/250 System Corruption 0% Temperature Cool (7) Movement Treading (320) Ox2 Location -10/Subcaves Parts ------- > --- POWER (1) -------- Ion Engine > --- PROPULSION (2) --- Light Treads Light Treads > --- UTILITY (2) ------ Huge Storage Unit Hardened Light Armor Plating > --- WEAPON (2) ------- Beam Cannon Subdweller Machine Gun > --- INVENTORY (25) --- Light Treads Light Treads Light Treads Light Treads Light Treads Compact Wheel Flightbrick Heat Sink Signal Interpreter Improved Terrain Scanner Seismic Detector Improved Targeting Computer Hardened Light Armor Plating Hardened Light Armor Plating Hardened Light Armor Plating Shield Generator Hacking Suite Heavy EM Pulse Gun Assault Rifle Grenade Launcher Mining Laser Hammer Peak State ------------ > --- POWER ------------ Ion Engine > --- PROPULSION ------- Light Treads Light Treads > --- UTILITY ---------- Huge Storage Unit Hardened Light Armor Plating > --- WEAPON ----------- Heavy EM Pulse Gun Subdweller Machine Gun > --- INVENTORY -------- Light Treads Light Treads Light Treads Light Treads Light Treads Compact Wheel Flightbrick Heat Sink Signal Interpreter Improved Terrain Scanner Seismic Detector Improved Targeting Computer Hardened Light Armor Plating Hardened Light Armor Plating Hardened Light Armor Plating Shield Generator Hacking Suite Beam Cannon Assault Rifle Grenade Launcher Mining Laser Hammer [Rating: 16] Favorites ----------- Power Ion Engine Engine Ion Engine Propulsion Light Treads Treads Light Treads Leg Aluminum Leg Wheel Compact Wheel Flight Unit Improved Flight Unit Utility Seismic Detector Device Seismic Detector Storage Huge Storage Unit Protection Hardened Light Armor Plating Weapon Light Assault Rifle Energy Gun Heavy EM Pulse Gun Energy Cannon Beam Cannon Ballistic Gun Light Assault Rifle Launcher Grenade Launcher Special Weapon Mining Laser Build | -11 -10 -10 ------- Run | Yrd Mat Sub Slots Evolved . | . . . Power . | . . . Propulsion . | . . . Utility . | . . . Weapon . | . . . Parts Attached 23 | 1 16 6 Power 1 | . 1 . Engine 1 | . 1 . Core . | . . . Reactor . | . . . Propulsion 5 | . 4 1 Treads 2 | . 1 1 Leg 1 | . 1 . Wheel 1 | . 1 . Hover . | . . . Flight 1 | . 1 . Utility 5 | 1 3 1 Device 2 | 1 1 . Storage 2 | . 2 . Processor . | . . . Hackware . | . . . Protection 1 | . . 1 Artifact . | . . . Weapon 12 | . 8 4 Energy Gun 2 | . . 2 Energy Cannon 1 | . 1 . Ballistic Gun 5 | . 4 1 Ballistic Cannon . | . . . Launcher 3 | . 3 . Special Weapon 1 | . . 1 Impact Weapon . | . . . Slashing Weapon . | . . . Piercing Weapon . | . . . Special Melee Weapon . | . . . Unidentified Prototypes 1 | . 1 . Parts Lost 3 | . 2 1 Power 1 | . 1 . Propulsion 1 | . 1 . Utility . | . . . Weapon 1 | . . 1 Highest Loss Streak 1 | . 1 1 To Critical Strikes . | . . . Average Backups 18 | 6 13 24 Power . | 1 . . Propulsion 5 | 4 4 6 Utility 7 | . 4 10 Weapon 6 | 1 4 7 Tool/Special . | . . . Unused Backups 26 | 1 7 18 Power 1 | . 1 . Propulsion 9 | . 3 6 Utility 11 | . 2 9 Weapon 5 | 1 1 3 Tool/Special . | . . . Average Slot Usage (%) 98 | . 96 99 Engine 12 | . 11 14 Treads 15 | . 7 24 Leg 6 | . 12 . Wheel 5 | . 8 3 Device 12 | . 13 9 Storage 14 | . 14 14 Protection 1 | . . 4 Energy Cannon 7 | . 2 13 Ballistic Gun 15 | . 21 8 Launcher 2 | . 4 . Special Weapon 1 | . . 2 Peak Build Rating 16 | 8 10 16 Average Rating 9 | 6 8 11 On Entrance 8 | 6 8 10 Naked Turns . | . . . Heaviest Build 97 | 11 91 97 Greatest Support 40 | 20 20 40 Greatest Overweight (x) 5 | . 5 5 Average Overweight (x) 2 | . 1 3 Largest Inventory Capacity 25 | 8 25 25 Average Capacity 20 | 8 16 25 Most Carried 25 | 8 25 25 Average Carried 18 | 6 13 24 Final Capacity 25 | 8 25 25 Final Carried 25 | 8 25 25 Class Distribution -------------------- 100% | Mutant Dominant Class ---------------- Mutant | -10/Materials Mutant | -10/Subcaves Resources | -11 -10 -10 ----------- Run | Yrd Mat Sub Matter Collected 845 | 246 508 91 Remotely . | . . . Salvage Created 850 | 133 626 91 Parts 80 | 9 63 8 Haulers Intercepted 2 | . 2 . Recyclers Shooed 1 | 1 . . Parts Field Recycled . | . . . Retrieved Matter . | . . . Parts Self-Destructed 1 | . . 1 Prevented . | . . . Kills | -11 -10 -10 ------- Run | Yrd Mat Sub Combat Hostiles Destroyed 25 | . 21 4 Guns 8 | . 8 . Cannons 3 | . 2 1 AOE 14 | . 11 3 Classes Destroyed 11 | 2 7 2 Worker 1 | . 1 . Builder 1 | . 1 . Tunneler 3 | 3 . . Hauler 2 | . 2 . Recycler 1 | 1 . . Operator 2 | . 2 . Watcher 3 | . 3 . Swarmer 6 | . 6 . Grunt 15 | . 15 . Artisan 1 | . . 1 Subdweller 4 | . . 4 Best Kill Streak 4 | 2 4 2 Combat Bots Only 4 | . 4 2 Max Kills in Single Turn 2 | 1 2 2 Gunslinging 1 | . 1 . Exploded 2 | . 2 2 Melee . | . . . Uniques/NPCs Destroyed . | . . . Combat | -11 -10 -10 -------- Run | Yrd Mat Sub Hostile Shots Fired 91 | . 66 25 Missed 26 | . 19 7 Hits 65 | . 47 18 Projectile 65 | . 47 18 Damage Taken 899 | . 531 368 Core 256 | . 149 107 Absorbed by Shields . | . . . Regen/Repaired (Parts) 10 | . 10 . Core Remaining (%) 100 | 100 . . Volleys Fired 114 | 18 64 32 Largest 2 | 2 2 2 Hottest 100 | 40 80 100 Shots Fired 199 | 36 121 42 Gun 144 | 36 101 7 Cannon 15 | . 2 13 Launcher 25 | . 18 7 Special 15 | . . 15 Kinetic 143 | 36 101 6 Thermal 30 | . 2 28 Explosive 25 | . 18 7 Electromagnetic 1 | . . 1 Robot Hit Streak 11 | 8 7 11 Robot Miss Streak 6 | 3 6 2 Penetration Max . | . . . Secondary Targets 3 | . 3 . Max Gunslinging Chain 1 | . 1 . Shots Hit Robots 109 | 26 67 16 Core Hits 74 | 8 57 9 Critical Kills . | . . . Critical Parts Destroyed 1 | 1 . . Critical Strikes 1 | 1 . . Destroy 1 | 1 . . Melee Attacks . | . . . Impact . | . . . Slashing . | . . . Piercing . | . . . Sneak Attacks . | . . . Combat Hostiles . | . . . Follow-up Attacks . | . . . Damage Inflicted 2628 | 203 1638 787 Guns 785 | 203 501 81 Cannons 193 | . 35 158 Explosions 1646 | . 1098 548 Melee . | . . . Ramming 4 | . 4 . Kinetic 770 | 203 501 66 Thermal 193 | . 35 158 Explosive 1646 | . 1098 548 Electromagnetic 15 | . . 15 Impact . | . . . Slashing . | . . . Piercing . | . . . Highest Corruption . | . . . Average Corruption . | . . . Corruption Purged . | . . . Corruption Blocked . | . . . Overload Shots . | . . . Overflow Damage . | . . . Projectiles . | . . . Explosions . | . . . Melee . | . . . Knockbacks . | . . . Impact . | . . . Kinetic . | . . . Secondary . | . . . Self-Inflicted Damage . | . . . Shots . | . . . Rammed 1 | . 1 . Targets Rammed 2 | . 2 . Kicked 1 | . 1 . Crushed . | . . . Highest Temperature 58 | . 58 1 Average Temperature 14 | . 16 1 Received Heat Transfer 309 | . 255 54 Siege Activations . | . . . Martial Activations . | . . . Shielding Activations . | . . . Robots Disrupted . | . . . Combat Hostiles . | . . . Robots Corrupted . | . . . Combat Hostiles . | . . . Parts Fried . | . . . Impact Corruptions . | . . . Robots Melted . | . . . Combat Hostiles . | . . . Parts Melted . | . . . Heat Transferred 407 | . 74 333 Parts Sabotaged . | . . . Parts Stolen . | . . . Parts Stripped . | . . . Power Chain Reactions . | . . . Alert | -11 -10 -10 ------- Run | Yrd Mat Sub Maximum Alert Level 1 | . 1 . Low Security (%) 86 | 100 86 . Level 1 13 | . 13 . Level 2 . | . . . Level 3 . | . . . Level 4 . | . . . Level 5 . | . . . High Security . | . . . Max Security . | . . . Peak Influence 249 | 5 249 . Initial . | . . . Average 128 | 2 133 . Influence Increases 720 | 20 700 . Destroy 0b10 Robot/C 420 | . 420 . Destroy 0b10 Robot/NC 65 | 20 45 . Destroy Leader 90 | . 90 . Successful Hack 19 | . 19 . Disable Machine 30 | . 30 . Destroy Structure 96 | . 96 . Influence Decreases 720 | 20 572 128 Entered New Map 62 | . . 62 Time Decay 638 | 20 552 66 Lost Part 20 | . 20 . Squads Dispatched 5 | . 5 . Investigation 3 | . 3 . Extermination . | . . . Reinforcement 2 | . 2 . Assault . | . . . Garrison . | . . . Intercept . | . . . Searches Triggered . | . . . Construction Impeded . | . . . Haulers Reinforced . | . . . Active Scanning Responses . | . . . Cargo Convoy Interrupts . | . . . Stealth | -11 -10 -10 --------- Run | Yrd Mat Sub Distress Signals 1 | . 1 . Communications Jammed . | . . . Distress Signals . | . . . Times Spotted 36 | . 30 6 Peak Tracking Total 5 | . 5 2 Tactical Retreats . | . . . Traps | -11 -10 -10 ------- Run | Yrd Mat Sub Traps Triggered 3 | . 3 . Indirectly . | . . . Trap Hack Attempts . | . . . Triggered . | . . . Disarmed . | . . . Reprogrammed . | . . . Reused . | . . . Traps Extracted . | . . . Installed . | . . . Triggered . | . . . Machines | -11 -10 -10 ---------- Run | Yrd Mat Sub Machines Disabled 4 | . 2 2 Max in Single Turn 1 | . 1 1 Machines Repaired . | . . . Machines Dismantled . | . . . Machines Sabotaged . | . . . Overloaded Fab Kills . | . . . Hacking | -11 -10 -10 --------- Run | Yrd Mat Sub Machines Accessed 8 | . 7 1 Terminals 5 | . 5 . Fabricators . | . . . Repair Stations 1 | . 1 . Recycling Units 1 | . 1 . Scanalyzers . | . . . Garrison Access . | . . . Total Hacks 22 | . 21 1 Successful 12 | . 11 1 Failed 10 | . 10 . Catastrophic 2 | . 2 . Database Lockouts . | . . . Manual 18 | . 18 . Terminals 18 | . 18 . Fabricators . | . . . Repair Stations 2 | . 2 . Recycling Units 1 | . 1 . Scanalyzers . | . . . Garrison Access . | . . . Terminal Hacks 5 | . 4 1 Part Schematic 3 | . 3 . Locate Traps 1 | . 1 . Proto ID Catalog 1 | . . 1 Fabricator Hacks . | . . . Repair Station Hacks 2 | . 2 . Scan Component 1 | . 1 . Repair 1 | . 1 . Recycling Unit Hacks . | . . . Scanalyzer . | . . . Garrison Access Hacks . | . . . Unauthorized Hacks 5 | . 5 . Terminals 4 | . 4 . Botnet 4 | . 4 . Fabricators . | . . . Repair Stations . | . . . Recycling Units 1 | . 1 . Reject 1 | . 1 . Scanalyzers . | . . . Garrison Access . | . . . Data Cores Recovered 1 | . 1 . Used . | . . . Hacking Detections 7 | . 7 . Full Trace Events . | . . . Feedback Events . | . . . Feedback Blocked . | . . . Robot Schematics Acquired . | . . . Robots Built . | . . . Authchips . | . . . Time . | . . . Total Robot Build Rating . | . . . Part Schematics Acquired 2 | . 2 . Parts Built . | . . . Authchips . | . . . Time . | . . . Total Part Build Rating . | . . . Parts Repaired 1 | . 1 . Time 26 | . 26 . Parts Recycled . | . . . Recycled Matter . | . . . Retrieved Matter . | . . . Retrieved Components . | . . . Parts Scanalyzed . | . . . Part Schematics Acquired . | . . . Parts Damaged . | . . . Bothacking | -11 -10 -10 ------------ Run | Yrd Mat Sub Used RIF Installer . | . . . Robots Hacked . | . . . Non-combat . | . . . Combat . | . . . Robot Hacks Applied . | . . . Relay Couplers Released . | . . . Fabnet Peak Effective % . | . . . Robots Rewired . | . . . Allies Hacked . | . . . Hacks Repelled . | . . . Allies | -11 -10 -10 -------- Run | Yrd Mat Sub Total Allies . | . . . Largest Group . | . . . Highest-Rated Group . | . . . Highest-Rated Ally . | . . . Total Orders . | . . . Ally Attacks . | . . . Total Damage . | . . . Kills . | . . . Allies Corrupted . | . . . Allies Melted . | . . . Intel | -11 -10 -10 ------- Run | Yrd Mat Sub Active Infowar (turns) 3184 | 28 1906 1250 Terrain 357 | . 357 . Seismic 2827 | 28 1549 1250 Robot Analysis Total . | . . . Derelict Logs Recovered 1 | . . 1 Drone Launches . | . . . Drone Recoveries . | . . . Exploration | -11 -10 -10 ------------- Run | Yrd Mat Sub Turns Passed 3770 | 87 1932 1751 Spaces Moved 1511 | 20 891 600 Core . | . . . Treads 554 | . 185 369 Legs 440 | 20 420 . Wheels 517 | . 286 231 Hover . | . . . Flight . | . . . Fastest Speed 115 | 120 115 175 Average Speed 214 | 120 183 264 Slowest Speed 320 | 120 260 320 Overloaded Moves . | . . . Propulsion Burnouts . | . . . Robots Hopped . | . . . Potential Cave-ins . | . . . Cave-ins Triggered . | . . . Exploration Rate (%) 50 | 4 97 49 Regions Visited 2 Branch Regions 1 Pre-discovered Areas . | . . . Known Exits Taken . | . . . Unknown Exits Taken 2 | 1 1 . Scrap Searched . | . . . Spaces Dug . | . . . Terrain Destroyed 131 | . 112 19 Melee . | . . . Projectile . | . . . AOE 131 | . 112 19 Terrain Rammed . | . . . Walls Destroyed . | . . . Machines Disabled . | . . . Actions | -11 -10 -10 --------- Run | Yrd Mat Sub Total 1823 | 54 1079 690 Wait 108 | 12 62 34 Move 1509 | 19 890 600 Hop . | . . . Pick Up 30 | 3 24 3 Fast Attach 4 | 1 3 . Attach 5 | . 4 1 Detach . | . . . Swap 33 | . 18 15 Drop 18 | 1 12 5 Fire 114 | 18 64 32 Melee . | . . . Ram . | . . . Kick 1 | . 1 . Crush 1 | . 1 . Escape Stasis . | . . . Rewire . | . . . Trap . | . . . Miscellaneous . | . . . Route ------- -11/Scrapyard -10/Materials (discovered 6 exits: [*Mat x3] / [*Min x2] / *Sub) -10/Subcaves History --------- Turn | Location | Event 17 | -11/Scrapyard | Discovered new exit (range 3) 88 | -11/Scrapyard | Entered Materials 303 | -10/Materials | Build established: Mutant 330 | -10/Materials | Discovered new exit (range 7) 586 | -10/Materials | Discovered new exit (range 7) 687 | -10/Materials | Discovered new exit (range 4) 714 | -10/Materials | Core integrity fell below 50% 970 | -10/Materials | Discovered new exit (range 16) 1024 | -10/Materials | Discovered new exit (range 16) 1296 | -10/Materials | Repaired Seismic Detector 1322 | -10/Materials | Discovered new exit (range 13) 2020 | -10/Materials | Entered Subcaves 2041 | -10/Subcaves | Ambushed by Subdwellers from Twisted Machinery 2221 | -10/Subcaves | A swath of the cavern ceiling suddenly collapsed 2957 | -10/Subcaves | Core integrity fell below 20% 3365 | -10/Subcaves | Learned Materials terminal intel 3625 | -10/Subcaves | Visited 4L-MR0's lab 3663 | -10/Subcaves | Found Flightbrick 3771 | -10/Subcaves | Destroyed by 6W-IDL(R) with Subdweller Laser Last Messages --------------- Meta Core Arachnoskeleton Cargo Legs Tripod Weapons Platform Flightbrick Gun Armor Tower Shield Power Bank Rainbow Chip VL-GR5's Exoskeleton "Deathgrip" Powered Cannon 03640_ Dropped Hvy. EM Pulse Gun. 03641_ Dropped Mak. Light Armor Plating. 03652_ Testing Chamber breached. 03663_ Acquired Flightbrick. 03680_ Machine disabled. 03687_ 4L-MR0 cries out in pain. 03687_ 4L-MR0 destroyed. 03689_ Acquired 27 matter. 03695_ Subatomizers dissect the Lgt. Ion Engine. Map ----- +----------------------------------------------------+ | ???????????????????????????????????????????? | | ???????????????????????????????????????????? | | ???????????????????????????????????????????? | | ???????????????????????????????????????????? | | ???????????????????????????????????????????? | | ???????????????????????????????????????????? | | ???????????????????????????????????????????? | | ???????????????????????????????????????????? | | ???????????????????????????????????????????? | | ???????????????????????????????????????????? | | ???????????????????????????????????????????? | | ??????????????????????? ???????????????????? | | ?????????????????????? ??????????????????? | | ??????????????????????|R ??????????????????? | | ????????????????????##R ???????????????????? | | ???????????????????? ???????????????????? | | ???????????????????? #???????????????????? | | ???????????????????? ????????????????????? | | ??????????????????## ???????? ???????????? | | ?????????????????## #??????? ????? ????? | | ???#########??#### ##?####?"""?? " ?????? | | ??## """" #### ## ### """ ??????? | | ??#" " """"### "" ???????? | | ??# """ ^ ## ?? ""|????????? | | ??# "" "" ## # #????? " ?????????? | | ??### "##" # # @ #??????# #?????????? | | ???###+##### ## # ##??#### ##????????? | | ???#= *"#?# #" #### ####?????? | | ???#"[ "#?# ##????? | | ???#[[""#?# #????? | | ???# !X"#?# # < #????? | | ???# ""#?#####< # # ##????? | | ???# #""#?????# ###### ##?????? | | ???# #""#?????## ##????## ##??????? | | ???######?????## ##??????#####???????? | | ??????????????# ##???????????????????? | | ??????????????## ##????????????????????? | | ???????????????# #?????????????????????? | | ???????????????# #?????????????????????? | | ??????????????## ##?????????????????????? | | ??????????????# ###??????????????????????? | | ??????????????## #?####???????????????????? | | ???????????????# ### #???????????????????? | | ???????????????# #???????????????????? | | ???????????????# #???????????????????? | | ???????????????##### #???????????????????? | | ??????????????????## #???????????????????? | | ???????????????#### ##???????????????????? | | ??????????????## #????????????????????? | | ??????????????# #######??????????????? | +----------------------------------------------------+ Best States ------------- Heat Dissipation 25 Energy Generation 10 Energy Capacity 250 Matter Stores 300 Matter Capacity 300 Sight Range 16 Terrain Scan Range 16 Terrain Scan Density 10 Armor Coverage 150 Evasion (%) 55 Recoil Reduction 2 Item Schematics ----------------- Huge Storage Unit | -10/Materials | Hacked Hcp. Storage Unit | -10/Materials | Hacked Robot Schematics ------------------ None Fabricated ------------ Nothing Repaired ---------- Seismic Detector | 50% | -10/Materials Alien Tech Used ----------------- None Achievements -------------- None Challenges ------------ None Game ------ Seed CommBarrageThruster Manual? 0 Play Time 00:20:23 Cumulative 202.6 hours Start 2025.05.26 @ 22:21:43 End 2025.05.26 @ 22:45:39 Sessions 1 Manual Loads 0 Difficulty Rogue Special Mode None Game No. 28 Rogue 21 Adventurer 4 Explorer 3 Win Type - Total 20 Types 10/2/2/1/1/0/1/2/0/1 Lore% 66 Gallery% 78 Achievement% 71 Wizard Run 0 Options --------- Layout 0 ASCII 0 Keyboard 0 Movement Mouse Keybinds 0 Fullscreen 1 Font 18/TerminusBold Map View 76x50 Zoom Use 0% Tactical HUD 1 Map Filters NONE Filters NONE Steam 1 RUN: e92788c4-0093-47c0-9917-ff72532f746c